fUSD/lending_fUSD_20250923
["ID","MTS","AMOUNT","RATE_DAILY","PERIOD"]
[387251709,1758664432645,-218.57363497,0.00028767,3]
[387251710,1758664432655,-788.82,0.00028767,3]
[387251711,1758664432664,-501.25,0.00028767,3]
[387251712,1758664432674,-400.0,0.00028767,3]
[387251713,1758664432684,-507.49496933,0.00028767,3]
[387251714,1758664432693,-400.0,0.00028767,3]
[387251715,1758664432702,-400.0,0.00028767,3]
[387251716,1758664432712,-467.58,0.00028767,3]
[387251717,1758664432722,-614.35,0.00028767,3]
[387251718,1758664432731,-387.17,0.00028767,3]
[387251719,1758664432741,-686.69,0.00028767,3]
[387251720,1758664432750,-400.0,0.00028767,3]
[387251721,1758664432759,-1284.73,0.00028767,3]
[387251722,1758664432770,-642.36,0.00028767,3]
[387251723,1758664432779,-400.0,0.00028767,3]
[387251724,1758664432789,-560.54,0.00028767,3]
[387251725,1758664432798,-1073.37,0.00028767,3]
[387251726,1758664432808,-753.1,0.00028767,3]
[387251727,1758664432818,-545.97,0.00028767,3]
[387251728,1758664432827,-400.0,0.00028767,3]
[387251729,1758664432836,-400.0,0.00028767,3]
[387251730,1758664432846,-580.05,0.00028767,3]
[387251731,1758664432855,-1196.06,0.00028767,3]
[387251732,1758664432865,-779.4,0.00028767,3]
[387251733,1758664432874,-1387.31,0.00028767,3]
[387251734,1758664432884,-526.44,0.00028767,3]
[387251735,1758664432894,-914.9,0.00028767,3]
[387251736,1758664432903,-400.0,0.00028767,3]
[387251737,1758664432912,-751.05,0.00028767,3]
[387251738,1758664432921,-10481.21,0.00028767,3]
[387251739,1758664432931,-400.0,0.00028767,3]
[387251740,1758664432940,-585.69,0.00028767,3]
[387251741,1758664432950,-400.0,0.00028767,3]
[387251742,1758664432960,-1075.59,0.00028767,3]
[387251743,1758664432970,-1243.9,0.00028767,3]
[387251744,1758664432979,-2675.56,0.00028767,3]
[387251745,1758664432989,-400.0,0.00028767,3]
[387251746,1758664432999,-1687.56,0.00028767,3]
[387251747,1758664433008,-603.56,0.00028767,3]
[387251748,1758664433017,-613.2,0.00028767,3]
[387251749,1758664433028,-1380.17,0.00028767,3]
[387251750,1758664433038,-400.0,0.00028767,3]
[387251751,1758664433048,-400.0,0.00028767,3]
[387251752,1758664433058,-1984.04,0.00028767,3]
[387251753,1758664433069,-637.31,0.00028767,3]
[387251754,1758664433079,-536.31,0.00028767,3]
[387251755,1758664433089,-1960.16,0.00028767,3]
[387251756,1758664433099,-653.4,0.00028767,3]
[387251757,1758664433109,-400.0,0.00028767,3]
[387251758,1758664433119,-400.0,0.00028767,3]
[387251759,1758664433129,-1811.83,0.00028767,3]
[387251760,1758664433138,-333.73946678,0.00028767,3]
[387251761,1758664433147,-485.31,0.00028767,3]
[387251762,1758664433156,-609.4,0.00028767,3]
[387251763,1758664433166,-1777.36,0.00028767,3]
[387251764,1758664433175,-3596.07,0.00028767,3]
[387251765,1758664433184,-955.0,0.00028767,3]
[387251766,1758664433193,-1530.13,0.00028767,3]
[387251767,1758664433203,-400.0,0.00028767,3]
[387251768,1758664433213,-1065.12,0.00028767,3]
[387251769,1758664433222,-400.0,0.00028767,3]
[387251770,1758664433232,-624.46,0.00028767,3]
[387251771,1758664433242,-668.62,0.00028767,3]
[387251772,1758664433251,-400.0,0.00028767,3]
[387251773,1758664433261,-766.88,0.00028767,3]
[387251774,1758664433271,-488.82,0.00028767,3]
[387251775,1758664433280,-1866.98,0.00028767,3]
[387251776,1758664433289,-674.88,0.00028767,3]
[387251777,1758664433299,-507.6,0.00028767,3]
[387251778,1758664433308,-2251.93,0.00028767,3]
[387251779,1758664433318,-1430.39,0.00028767,3]
[387251780,1758664433327,-1005.24,0.00028767,3]
[387251781,1758664433336,-706.55,0.00028767,3]
[387251782,1758664433346,-295.21733801,0.00028767,3]
[387251783,1758664433355,-471.06,0.00028767,3]
[387251784,1758664433364,-440.49,0.00028767,3]
[387251785,1758664433373,-1632.87,0.00028767,3]
[387251786,1758664433382,-2172.06,0.00028767,3]
[387251787,1758664433392,-1577.53,0.00028767,3]
[387251788,1758664433402,-573.43,0.00028767,3]
[387251789,1758664433411,-1762.21,0.00028767,3]
[387251790,1758664433424,-2598.87,0.00028767,3]
[387251791,1758664433433,-2106.48,0.00028767,3]
[387251792,1758664433443,-2137.16,0.00028767,3]
[387251793,1758664433452,-1633.99,0.00028767,3]
[387251794,1758664433463,-665.33,0.00028767,3]
[387251795,1758664433472,-400.0,0.00028767,3]
[387251796,1758664433481,-507.04,0.00028767,3]
[387251797,1758664433491,-652.14,0.00028767,3]
[387251798,1758664433501,-441.78,0.00028767,3]
[387251799,1758664433511,-2272.09,0.00028767,3]
[387251800,1758664433521,-2095.57,0.00028767,3]
[387251801,1758664433531,-2047.84,0.00028767,3]
[387251802,1758664433540,-425.92,0.00028767,3]
[387251803,1758664433549,-782.31,0.00028767,3]
[387251804,1758664433559,-1845.88,0.00028767,3]
[387251805,1758664433568,-1531.58,0.00028767,3]
[387251806,1758664433578,-1188.08,0.00028767,3]
[387251807,1758664433588,-1490.46,0.00028767,3]
[387251808,1758664433597,-2033.65,0.00028767,3]
[387251809,1758664433608,-2177.65,0.00028767,3]
[387251810,1758664433617,-2728.22,0.00028767,3]
[387251811,1758664433628,-457.97,0.00028767,3]
[387251812,1758664433637,-400.0,0.00028767,3]
[387251813,1758664433647,-1405.11,0.00028767,3]
[387251814,1758664433657,-680.61,0.00028767,3]
[387251815,1758664433667,-1113.08,0.00028767,3]
[387251816,1758664433677,-1415.66,0.00028767,3]
[387251817,1758664433687,-1698.64,0.00028767,3]
[387251818,1758664433698,-1312.62,0.00028767,3]
[387251819,1758664433707,-769.12,0.00028767,3]
[387251820,1758664433717,-1079.65,0.00028767,3]
[387251821,1758664433727,-400.0,0.00028767,3]
[387251822,1758664433737,-916.94,0.00028767,3]
[387251823,1758664433749,-2186.72,0.00028767,3]
[387251824,1758664433761,-546.81,0.00028767,3]
[387251825,1758664433771,-485.45,0.00028767,3]
[387251826,1758664433781,-952.65,0.00028767,3]
[387251827,1758664433790,-643.52,0.00028767,3]
[387251828,1758664433800,-1538.99,0.00028767,3]
[387251829,1758664433811,-400.0,0.00028767,3]
[387251830,1758664433821,-400.0,0.00028767,3]
[387251831,1758664433830,-767.66,0.00028767,3]
[387251832,1758664433841,-1510.65,0.00028767,3]
[387251833,1758664433851,-1183.46,0.00028767,3]
[387251834,1758664433860,-1025.71,0.00028767,3]
[387251835,1758664433870,-1292.75,0.00028767,3]
[387251836,1758664433881,-1576.62,0.00028767,3]
[387251837,1758664433890,-589.78,0.00028767,3]
[387251838,1758664433900,-2168.52,0.00028767,3]
[387251839,1758664433910,-400.0,0.00028767,3]
[387251840,1758664433919,-1248.87,0.00028767,3]
[387251841,1758664433929,-1438.1,0.00028767,3]
[387251842,1758664433939,-801.34,0.00028767,3]
[387251843,1758664433948,-408.05,0.00028767,3]
[387251844,1758664433957,-400.0,0.00028767,3]
[387251845,1758664433966,-1989.17,0.00028767,3]
[387251846,1758664433975,-1355.06,0.00028767,3]
[387251847,1758664433984,-1742.92,0.00028767,3]
[387251848,1758664433994,-1035.45,0.00028767,3]
[387251849,1758664434003,-466.56,0.00028767,3]
[387251850,1758664434013,-1515.98,0.00028767,3]
[387251851,1758664434023,-1785.83,0.00028767,3]
[387251852,1758664434032,-400.0,0.00028767,3]
[387251853,1758664434043,-835.56,0.00028767,3]
[387251854,1758664434054,-1984.29,0.00028767,3]
[387251855,1758664434065,-1716.89,0.00028767,3]
[387251856,1758664434074,-635.55,0.00028767,3]
[387251857,1758664434083,-786.93,0.00028767,3]
[387251858,1758664434092,-645.64,0.00028767,3]
[387251859,1758664434101,-400.0,0.00028767,3]
[387251860,1758664434110,-2059.55,0.00028767,3]
[387251861,1758664434120,-1514.01,0.00028767,3]
[387251862,1758664434130,-2306.45,0.00028767,3]
[387251863,1758664434144,-400.0,0.00028767,3]
[387251864,1758664434153,-1545.45,0.00028767,3]
[387251865,1758664434162,-2095.63,0.00028767,3]
[387251866,1758664434172,-271.90635754,0.00028767,3]
[387251867,1758664434181,-1430.02,0.00028767,3]
[387251868,1758664434191,-909.31,0.00028767,3]
[387251869,1758664434200,-1827.73,0.00028767,3]
[387251870,1758664434209,-376.60352981,0.00028767,3]
[387251871,1758664434219,-690.64,0.00028767,3]
[387251872,1758664434228,-2101.8,0.00028767,3]
[387251873,1758664434238,-966.9,0.00028767,3]
[387251874,1758664434247,-655.71,0.00028767,3]
[387251875,1758664434256,-400.0,0.00028767,3]
[387251876,1758664434265,-1470.41,0.00028767,3]
[387251877,1758664434274,-603.72,0.00028767,3]
[387251878,1758664434283,-5585.99,0.00028767,3]
[387251879,1758664434292,-400.0,0.00028767,3]
[387251880,1758664434302,-400.0,0.00028767,3]
[387251881,1758664434311,-1883.8,0.00028767,3]
[387251882,1758664434320,-1867.36,0.00028767,3]
[387251883,1758664434330,-1963.55,0.00028767,3]
[387251884,1758664434339,-614.58,0.00028767,3]
[387251885,1758664434348,-952.78,0.00028767,3]
[387251886,1758664434357,-400.0,0.00028767,3]
[387251887,1758664434367,-400.0,0.00028767,3]
[387251888,1758664434376,-1560.6,0.00028767,3]
[387251889,1758664434385,-1953.23,0.00028767,3]
[387251890,1758664434395,-1674.22,0.00028767,3]
[387251891,1758664434404,-492.65,0.00028767,3]
[387251892,1758664434414,-924.37,0.00028767,3]
[387251893,1758664434425,-1508.32,0.00028767,3]
[387251894,1758664434435,-1865.08,0.00028767,3]
[387251895,1758664434449,-400.0,0.00028767,3]
[387251896,1758664434470,-1262.69,0.00028767,3]
[387251897,1758664434488,-1344.24,0.00028767,3]
[387251898,1758664434508,-1502.94,0.00028767,3]
[387251899,1758664434524,-1473.52,0.00028767,3]
[387251900,1758664434541,-957.08,0.00028767,3]
[387251901,1758664434559,-528.66,0.00028767,3]
[387251902,1758664434579,-552.31,0.00028767,3]
[387251903,1758664434597,-2161.43,0.00028767,3]
[387251904,1758664434616,-2128.27,0.00028767,3]
[387251905,1758664434635,-943.67,0.00028767,3]
[387251906,1758664434653,-698.14,0.00028767,3]
[387251907,1758664434666,-956.83,0.00028767,3]
[387251908,1758664434686,-400.0,0.00028767,3]
[387251909,1758664434700,-1587.02,0.00028767,3]
[387251910,1758664434718,-428.71,0.00028767,3]
[387251911,1758664434740,-1021.78,0.00028767,3]
[387251912,1758664434755,-1854.69,0.00028767,3]
[387251913,1758664434769,-7304.35,0.00028767,3]
[387251914,1758664434785,-533.26,0.00028767,3]
[387251915,1758664434801,-347.7922558,0.00028767,3]
[387251916,1758664434817,-675.91,0.00028767,3]
[387251917,1758664434832,-1334.3,0.00028767,3]
[387251918,1758664434846,-447.62,0.00028767,3]
[387251919,1758664434862,-803.81,0.00028767,3]
[387251920,1758664434876,-400.0,0.00028767,3]
[387251921,1758664434891,-2319.15,0.00028767,3]
[387251922,1758664434905,-400.0,0.00028767,3]
[387251923,1758664434921,-1143.73,0.00028767,3]
[387251924,1758664434936,-318.75,0.00028767,3]
[387251925,1758664434951,-1693.96,0.00028767,3]
[387251926,1758664434967,-808.53,0.00028767,3]
[387251927,1758664434982,-1798.02,0.00028767,3]
[387251928,1758664434998,-400.0,0.00028767,3]
[387251929,1758664435012,-400.0,0.00028767,3]
[387251930,1758664435027,-1265.14,0.00028767,3]
[387251931,1758664435042,-493.9,0.00028767,3]
[387251932,1758664435265,-528.22,0.00028767,3]
[387251933,1758664435281,-1501.23,0.00028767,3]
[387251934,1758664435299,-400.0,0.00028767,3]
[387251935,1758664435314,-480.24,0.00028767,3]
[387251936,1758664435331,-400.0,0.00028767,3]
[387251937,1758664435347,-1303.69,0.00028767,3]
[387251938,1758664435362,-400.0,0.00028767,3]
[387251939,1758664435378,-810.26,0.00028767,3]
[387251940,1758664435393,-1157.48,0.00028767,3]
[387251941,1758664435407,-676.36,0.00028767,3]
[387251942,1758664435425,-923.87,0.00028767,3]
[387251943,1758664435441,-865.69,0.00028767,3]
[387251944,1758664435457,-1229.06,0.00028767,3]
[387251945,1758664435474,-645.83,0.00028767,3]
[387251946,1758664435492,-1798.6,0.00028767,3]
[387251947,1758664435509,-549.42,0.00028767,3]
[387251948,1758664435522,-404.28,0.00028767,3]
[387251949,1758664435537,-1589.65,0.00028767,3]
[387251950,1758664435553,-559.17,0.00028767,3]
[387251951,1758664435568,-1587.3,0.00028767,3]
[387251952,1758664435583,-1163.2,0.00028767,3]
[387251953,1758664435598,-536.97,0.00028767,3]
[387251954,1758664435614,-400.0,0.00028767,2]
[387251955,1758664435630,-2080.14,0.00028767,3]
[387251956,1758664435646,-529.51,0.00028767,3]
[387251957,1758664435661,-931.36,0.00028767,3]
[387251958,1758664435676,-1619.96,0.00028767,3]
[387251959,1758664435690,-280.69437091,0.00028767,3]
[387251960,1758664435704,-453.19,0.00028767,3]
[387251961,1758664435718,-948.64,0.00028767,3]
[387251962,1758664435732,-400.0,0.00028767,3]
[387251963,1758664435745,-1551.51,0.00028767,3]
[387251964,1758664435760,-13739.2,0.00028767,3]
[387251965,1758664435774,-1871.37,0.00028767,3]
[387251966,1758664435790,-618.32,0.00028767,3]
[387251967,1758664435804,-458.91,0.00028767,3]
[387251968,1758664435818,-657.58,0.00028767,3]
[387251969,1758664435833,-400.0,0.00028767,3]
[387251970,1758664435846,-1506.02,0.00028767,3]
[387251971,1758664435859,-1848.91,0.00028767,3]
[387251972,1758664435873,-400.0,0.00028767,3]
[387251973,1758664435887,-514.97,0.00028767,3]
[387251974,1758664435900,-400.0,0.00028767,3]
[387251975,1758664435914,-477.74,0.00028767,3]
[387251976,1758664435927,-391.21677468,0.00028767,3]
[387251977,1758664435941,-1395.95,0.00028767,3]
[387251978,1758664435955,-400.0,0.00028767,3]
[387251979,1758664435971,-1575.42,0.00028767,3]
[387251980,1758664435984,-1347.82,0.00028767,3]
[387251981,1758664435999,-400.0,0.00028767,3]
[387251982,1758664436012,-1495.51,0.00028767,3]
[387251983,1758664436025,-525.32,0.00028767,3]
[387251984,1758664436039,-1907.27,0.00028767,3]
[387251985,1758664436052,-1023.51,0.00028767,3]
[387251986,1758664436065,-432.69,0.00028767,3]
[387251987,1758664436079,-1351.02,0.00028767,3]
[387251988,1758664436091,-880.27,0.00028767,3]
[387251989,1758664436105,-548.79,0.00028767,3]
[387251990,1758664436119,-786.35,0.00028767,3]
[387251991,1758664436133,-1903.53,0.00028767,3]
[387251992,1758664436148,-451.0,0.00028767,3]
[387251993,1758664436162,-702.83,0.00028767,3]
[387251994,1758664436175,-2096.52,0.00028767,3]
[387251995,1758664436190,-1019.97,0.00028767,3]
[387251996,1758664436204,-475.27,0.00028767,3]
[387251997,1758664436219,-696.03,0.00028767,3]
[387251998,1758664436232,-419.83,0.00028767,3]
[387251999,1758664436247,-529.1,0.00028767,3]
[387252000,1758664436262,-1931.45,0.00028767,3]
[387252001,1758664436276,-601.48,0.00028767,3]
[387252002,1758664436290,-2252.15,0.00028767,3]
[387252003,1758664436305,-450.0,0.00028767,3]
[387252004,1758664436318,-536.36,0.00028767,3]
[387252005,1758664436332,-516.75,0.00028767,3]
[387252006,1758664436345,-2161.44,0.00028767,3]
[387252007,1758664436360,-620.93,0.00028767,3]
[387252008,1758664436373,-803.72,0.00028767,3]
[387252009,1758664436386,-2098.36,0.00028767,3]
[387252010,1758664436400,-1607.31,0.00028767,3]
[387252011,1758664436415,-3658.05,0.00028767,3]
[387252012,1758664436430,-1788.33,0.00028767,3]
[387252013,1758664436444,-998.12,0.00028767,3]
[387252014,1758664436459,-1550.42,0.00028767,3]
[387252015,1758664436475,-1221.01,0.00028767,3]
[387252016,1758664436490,-1421.09,0.00028767,3]
[387252017,1758664436505,-1581.33,0.00028767,3]
[387252018,1758664436520,-1796.87,0.00028767,3]
[387252019,1758664436534,-510.18,0.00028767,3]
[387252020,1758664436549,-515.25,0.00028767,3]
[387252021,1758664436565,-400.0,0.00028767,3]
[387252022,1758664436580,-1366.95,0.00028767,3]
[387252023,1758664436594,-1983.1,0.00028767,3]
[387252024,1758664436608,-566.08,0.00028767,3]
[387252025,1758664436623,-1644.62,0.00028767,3]
[387252026,1758664436637,-703.73,0.00028767,3]
[387252027,1758664436652,-712.53,0.00028767,3]
[387252028,1758664436667,-421.65,0.00028767,3]
[387252029,1758664436680,-838.91,0.00028767,3]
[387252030,1758664436693,-400.0,0.00028767,3]
[387252031,1758664436708,-1691.7,0.00028767,3]
[387252032,1758664436722,-1746.85,0.00028767,3]
[387252033,1758664436736,-586.14,0.00028767,3]
[387252034,1758664436751,-2088.64,0.00028767,3]
[387252035,1758664436766,-400.0,0.00028767,3]
[387252036,1758664436782,-1208.42,0.00028767,3]
[387252037,1758664436797,-706.04,0.00028767,3]
[387252038,1758664436811,-1530.19,0.00028767,3]
[387252039,1758664436826,-2924.19,0.00028767,3]
[387252040,1758664436839,-12997.44,0.00028767,3]
[387252041,1758664436852,-2130.52,0.00028767,3]
[387252042,1758664436868,-1462.57,0.00028767,3]
[387252043,1758664436881,-1005.85,0.00028767,3]
[387252044,1758664436896,-7446.15,0.00028767,3]
[387252045,1758664436911,-621.18,0.00028767,3]
[387252046,1758664436925,-1544.2,0.00028767,3]
[387252047,1758664436938,-644.91,0.00028767,3]
[387252048,1758664436952,-613.5,0.00028767,3]
[387252049,1758664436966,-644.94,0.00028767,3]
[387252050,1758664436980,-924.07,0.00028767,3]
[387252051,1758664436994,-413.72,0.00028767,3]
[387252052,1758664437007,-1218.93,0.00028767,3]
[387252053,1758664437020,-472.05,0.00028767,3]
[387252054,1758664437035,-525.7,0.00028767,3]
[387252055,1758664437049,-400.0,0.00028767,3]
[387252056,1758664437064,-431.76,0.00028767,3]
[387252057,1758664437078,-501.11,0.00028767,3]
[387252058,1758664437093,-964.09,0.00028767,3]
[387252059,1758664437107,-523.06,0.00028767,3]
[387252060,1758664437122,-2926.65,0.00028767,3]
[387252061,1758664437135,-1583.89,0.00028767,3]
[387252062,1758664437148,-400.0,0.00028767,3]
[387252063,1758664437161,-684.39,0.00028767,3]
[387252064,1758664437174,-1089.09,0.00028767,3]
[387252065,1758664437188,-400.0,0.00028767,3]
[387252066,1758664437202,-453.77,0.00028767,3]
[387252067,1758664437216,-564.83,0.00028767,3]
[387252068,1758664437230,-814.85,0.00028767,3]
[387252069,1758664437244,-10315.68,0.00028767,3]
[387252070,1758664437257,-873.79,0.00028767,3]
[387252071,1758664437272,-548.44,0.00028767,3]
[387252072,1758664437285,-1681.09,0.00028767,3]
[387252073,1758664437299,-478.24,0.00028767,3]
[387252074,1758664437313,-1081.32,0.00028767,3]
[387252075,1758664437326,-490.24,0.00028767,3]
[387252076,1758664437339,-710.95,0.00028767,3]
[387252077,1758664437354,-1874.55,0.00028767,3]
[387252078,1758664437367,-852.97,0.00028767,3]
[387252079,1758664437381,-895.27,0.00028767,3]
[387252080,1758664437396,-532.39,0.00028767,3]
[387252081,1758664437410,-1448.24,0.00028767,3]
[387252082,1758664437428,-677.14,0.00028767,3]
[387252083,1758664437441,-2056.2,0.00028767,3]
[387252084,1758664437454,-443.95,0.00028767,3]
[387252085,1758664437469,-1886.51,0.00028767,3]
[387252086,1758664437483,-1804.22,0.00028767,3]
[387252087,1758664437499,-1803.32,0.00028767,3]
[387252088,1758664437512,-1527.7,0.00028767,3]
[387252089,1758664437526,-1120.28,0.00028767,3]
[387252090,1758664437541,-517.83,0.00028767,3]
[387252091,1758664437555,-400.0,0.00028767,3]
[387252092,1758664437569,-400.0,0.00028767,3]
[387252093,1758664437584,-524.16,0.00028767,3]
[387252094,1758664437599,-2362.16,0.00028767,3]
[387252095,1758664437613,-3343.32,0.00028767,3]
[387252096,1758664437625,-1564.43,0.00028767,3]
[387252097,1758664437639,-482.02,0.00028767,3]
[387252098,1758664437653,-2055.82,0.00028767,3]
[387252099,1758664437667,-400.0,0.00028767,3]
[387252100,1758664437681,-2920.55,0.00028767,3]
[387252101,1758664437696,-485.4,0.00028767,3]
[387252102,1758664437711,-1036.13,0.00028767,3]
[387252103,1758664437727,-542.94,0.00028767,3]
[387252104,1758664437741,-3270.38,0.00028767,3]
[387252105,1758664437756,-2377.65,0.00028767,3]
[387252106,1758664437770,-4398.6,0.00028767,3]
[387252107,1758664437784,-1866.28,0.00028767,3]
[387252108,1758664437797,-1774.73,0.00028767,3]
[387252109,1758664437811,-400.0,0.00028767,3]
[387252110,1758664437827,-491.17,0.00028767,3]
[387252111,1758664437841,-1493.5,0.00028767,3]
[387252112,1758664437856,-441.23,0.00028767,3]
[387252113,1758664437870,-2733.93,0.00028767,3]
[387252114,1758664437885,-872.02,0.00028767,3]
[387252115,1758664437899,-2206.4,0.00028767,3]
[387252116,1758664437913,-566.5,0.00028767,3]
[387252117,1758664437927,-841.18,0.00028767,3]
[387252118,1758664437943,-1970.71,0.00028767,3]
[387252119,1758664437958,-400.0,0.00028767,3]
[387252120,1758664437973,-1182.93,0.00028767,3]
[387252121,1758664437986,-3675.81,0.00028767,3]
[387252122,1758664437999,-660.51,0.00028767,3]
[387252123,1758664438015,-469.2,0.00028767,3]
[387252124,1758664438033,-1466.11,0.00028767,3]
[387252125,1758664438048,-515.64,0.00028767,3]
[387252126,1758664438062,-535.19,0.00028767,3]
[387252127,1758664438075,-788.86,0.00028767,3]
[387252128,1758664438089,-1923.86,0.00028767,3]
[387252129,1758664438102,-493.51,0.00028767,3]
[387252130,1758664438116,-12445.83,0.00028767,3]
[387252131,1758664438130,-770.57,0.00028767,3]
[387252132,1758664438143,-681.58,0.00028767,3]
[387252133,1758664438156,-492.49744119,0.00028767,3]
[387252134,1758664438168,-3103.88,0.00028767,3]
[387252135,1758664438181,-1593.87,0.00028767,3]
[387252136,1758664438195,-1657.6,0.00028767,3]
[387252137,1758664438208,-1375.02,0.00028767,3]
[387252138,1758664438222,-2705.96,0.00028767,3]
[387252139,1758664438235,-4394.25,0.00028767,3]
[387252140,1758664438248,-1354.9,0.00028767,3]
[387252141,1758664438262,-483.59,0.00028767,3]
[387252142,1758664438277,-2718.14,0.00028767,3]
[387252143,1758664438291,-1801.89,0.00028767,3]
[387252144,1758664438305,-1525.42,0.00028767,3]
[387252145,1758664438318,-506.66,0.00028767,3]
[387252146,1758664438333,-616.12,0.00028767,3]
[387252147,1758664438345,-1080.71,0.00028767,3]
[387252148,1758664438358,-8925.42,0.00028767,3]
[387252149,1758664438372,-1946.95,0.00028767,3]
[387252150,1758664438386,-537.74,0.00028767,3]
[387252151,1758664438400,-693.58,0.00028767,3]
[387252152,1758664438413,-778.13,0.00028767,3]
[387252153,1758664438430,-1718.13,0.00028767,3]
[387252154,1758664438443,-6607.03,0.00028767,3]
[387252155,1758664438456,-1594.41,0.00028767,3]
[387252156,1758664438469,-1594.83,0.00028767,3]
[387252157,1758664438483,-487.88,0.00028767,3]
[387252158,1758664438497,-1328.48,0.00028767,3]
[387252159,1758664438511,-3295.49,0.00028767,3]
[387252160,1758664438524,-779.18,0.00028767,3]
[387252161,1758664438538,-2770.64,0.00028767,3]
[387252162,1758664438561,-720.33,0.00028767,3]
[387252163,1758664438576,-1145.93,0.00028767,3]
[387252164,1758664438590,-3077.98,0.00028767,3]
[387252165,1758664438604,-711.94,0.00028767,3]
[387252166,1758664439230,-560.56,0.00028767,3]
[387252167,1758664439269,-2609.15,0.00028767,3]
[387252168,1758664439280,-1532.57,0.00028767,3]
[387252169,1758664439290,-1601.89,0.00028767,3]
[387252170,1758664439299,-736.9,0.00028767,3]
[387252171,1758664439308,-1583.84,0.00028767,3]
[387252172,1758664439317,-470.81,0.00028767,3]
[387252173,1758664439327,-473.85,0.00028767,3]
[387252174,1758664439336,-2011.79,0.00028767,3]
[387252175,1758664439345,-444.2,0.00028767,3]
[387252176,1758664439354,-1424.75,0.00028767,3]
[387252177,1758664439363,-1854.54,0.00028767,3]
[387252178,1758664439373,-814.88,0.00028767,3]
[387252179,1758664439382,-1011.39,0.00028767,3]
[387252180,1758664439395,-7260.11,0.00028767,3]
[387252181,1758664439404,-667.22,0.00028767,3]
[387252182,1758664439413,-2063.59,0.00028767,3]
[387252183,1758664439426,-821.38,0.00028767,3]
[387252184,1758664439435,-746.48,0.00028767,3]
[387252185,1758664439444,-1885.78,0.00028767,3]
[387252186,1758664439453,-1320.39,0.00028767,3]
[387252187,1758664439463,-1989.15,0.00028767,3]
[387252188,1758664439472,-403.83,0.00028767,3]
[387252189,1758664439481,-400.0,0.00028767,3]
[387252190,1758664439491,-723.28,0.00028767,3]
[387252191,1758664439500,-1086.66,0.00028767,3]
[387252192,1758664439510,-561.18,0.00028767,3]
[387252193,1758664439519,-1260.0,0.00028767,3]
[387252194,1758664439529,-3598.37,0.00028767,3]
[387252195,1758664439539,-502.26,0.00028767,3]
[387252196,1758664439548,-1474.59,0.00028767,3]
[387252197,1758664439557,-2702.29,0.00028767,3]
[387252198,1758664439567,-1721.72,0.00028767,3]
[387252199,1758664439576,-446.96,0.00028767,3]
[387252200,1758664439587,-506.33,0.00028767,3]
[387252201,1758664439596,-400.0,0.00028767,3]
[387252202,1758664439606,-1424.01,0.00028767,3]
[387252203,1758664439615,-670.32,0.00028767,3]
[387252204,1758664439625,-1420.11,0.00028767,3]
[387252205,1758664439634,-1620.58,0.00028767,3]
[387252206,1758664439644,-1056.56,0.00028767,3]
[387252207,1758664439653,-1331.6,0.00028767,3]
[387252208,1758664439663,-1563.82,0.00028767,3]